fUSD/lending_fUSD_20260108
["ID","MTS","AMOUNT","RATE_DAILY","PERIOD"]
[400974323,1767876643495,-300.0,0.00017999,2]
[400974325,1767876643504,-300.0,0.00017999,2]
[400974327,1767876643514,-666.0,0.00017999,2]
[400974329,1767876643523,-6877338.06982498,0.00018,2]
[400974369,1767876643899,-73.79505146,0.00018,2]
[400974438,1767876644528,-151.0,0.00013979,2]
[400974440,1767876644538,-151.0,0.00013979,2]
[400974442,1767876644548,-1456.22993856,0.00014907,2]
[400974444,1767876644557,-2436.0,0.00016352,2]
[400974446,1767876644567,-87871.27006144,0.00018,2]
[400974448,1767876644577,-313.33199973,0.00018,2]
[400974450,1767876644589,-270.07342636,0.00018,2]
[400974453,1767876644600,-300.0620014,0.00018,2]
[400974455,1767876644611,-449.22,0.00018,2]
[400974457,1767876644624,-3498.88863397,0.00018,2]
[400974459,1767876644636,-9934.53080005,0.00018,2]
[400974462,1767876644648,-289.8224,0.00018,2]
[400974603,1767876646023,-901.23881587,0.0001371,2]
[400977884,1767876854183,164.07,9.362e-05,2]
[400978081,1767877207445,643.3255648,0.00010637,2]
[400978082,1767877443418,500.0,0.00010605,2]
[400978103,1767877723510,-222.18749106,0.00010785,2]
[400978104,1767877723533,-300.0,0.00010812,2]
[400978105,1767877723556,-250.0,0.0001084,2]
[400978106,1767877723579,-222.18749106,0.00010842,2]
[400978107,1767877723606,-40.63806341,0.00010842,2]
[400978108,1767877728336,-250.0,0.00010842,2]
[400978109,1767877729692,-9.36193659,0.00010842,2]
[400978110,1767877729715,-245.43487825,0.00010842,2]
[400978111,1767877732810,-54.56512175,0.00010842,2]
[400978112,1767877732833,-227.53064738,0.00010842,2]
[400978126,1767877811666,-160.52,0.00010721,2]
[400978127,1767877811689,-139.48,0.00010721,2]
[400978148,1767877831863,-98.52,0.00010721,2]
[400978149,1767877831874,-76.16742795,0.00010842,2]
[400978150,1767877831884,-250.0,0.00010867,2]
[400978151,1767877831894,-294.94177347,0.00010879,2]
[400978152,1767877832041,-1410.1452036,0.00010879,2]
[400978155,1767877837949,-147.33302293,0.00010879,2]
[400978156,1767877837958,-1000.0,0.00010885,2]
[400978157,1767877837968,-300.0,0.00010897,2]
[400978158,1767877837977,-765.64221361,0.00010897,2]
[400978159,1767877838005,-434.35778639,0.00010897,2]
[400978160,1767877838015,-222.18749106,0.00010898,2]
[400978161,1767877838024,-934.97476338,0.00010898,2]
[400978162,1767877838036,-267.97702398,0.00010898,2]
[400978163,1767877838066,-3234.24970126,0.00010898,2]
[400978333,1767877840004,-995562.79851138,0.00010898,2]
[400978335,1767877840013,-1161.5463443,0.000109,2]
[400978337,1767877840023,-1161.5463443,0.000109,2]
[400978339,1767877840033,-2500.0,0.00010926,2]
[400978341,1767877840043,-300.0,0.00010994,2]
[400978343,1767877840052,-150.0,0.00010994,2]
[400978345,1767877840063,-1200.0,0.00010995,2]
[400978347,1767877840071,-500.0,0.00010995,2]
[400978349,1767877840081,-500.0,0.00010995,2]
[400978351,1767877840092,-500.0,0.00010995,2]
[400978353,1767877840101,-500.0,0.00010995,2]
[400978355,1767877840110,-500.0,0.00010995,2]
[400978357,1767877840120,-500.0,0.00010995,2]
[400978359,1767877840130,-500.0,0.00010995,2]
[400978361,1767877840139,-500.0,0.00010995,2]
[400978363,1767877840149,-500.0,0.00010995,2]
[400978365,1767877840158,-500.0,0.00010995,2]
[400978367,1767877840167,-500.0,0.00010995,2]
[400978369,1767877840176,-500.0,0.00010995,2]
[400978371,1767877840186,-200.0,0.00010995,2]
[400978373,1767877840195,-500.0,0.00010995,2]
[400978375,1767877840204,-500.0,0.00010995,2]
[400978377,1767877840214,-500.0,0.00010995,2]
[400978379,1767877840223,-500.0,0.00010995,2]
[400978381,1767877840232,-500.0,0.00010995,2]
[400978383,1767877840242,-500.0,0.00010995,2]
[400978385,1767877840251,-500.0,0.00010995,2]
[400978387,1767877840263,-267.6446221,0.00010995,2]
[400978389,1767877840272,-369.86782327,0.00010997,2]
[400978391,1767877840282,-275.38684998,0.00010997,2]
[400978393,1767877840291,-500.0,0.00010997,2]
[400978395,1767877840300,-368.67277429,0.00010997,2]
[400978396,1767877840309,-323.62429135,0.00010997,2]
[400978398,1767877840319,-500.0,0.00010997,2]
[400978401,1767877840329,-463.55,0.00010997,2]
[400978402,1767877840339,-9999.99,0.00010998,2]
[400978405,1767877840352,-4987.2,0.00010998,2]
[400978407,1767877840361,-36923.16,0.00010998,2]
[400978409,1767877840371,-150.99,0.00010998,2]
[400978411,1767877840380,-462.07,0.00010998,2]
[400978413,1767877840391,-9999.99,0.00010998,2]
[400978414,1767877840400,-1548.21,0.00010998,2]
[400978416,1767877840409,-9999.99,0.00010998,2]
[400978419,1767877840421,-5441.69,0.00010998,2]
[400978420,1767877840430,-2095.37,0.00010998,2]
[400978422,1767877840440,-9999.99,0.00010998,2]
[400978424,1767877840448,-499.99,0.00010998,2]
[400978426,1767877840456,-347.78,0.00010998,2]
[400978428,1767877840464,-7632.64,0.00010998,2]
[400978430,1767877840473,-2507.77,0.00010998,2]
[400978432,1767877840482,-666.35774147,0.00010999,2]
[400978434,1767877840491,-151.0,0.00011019,2]
[400978436,1767877840501,-151.0,0.00011019,2]
[400978438,1767877840510,-200.0,0.00011019,2]
[400978440,1767877840519,-151.0,0.00011019,2]
[400978442,1767877840529,-151.0,0.00011019,2]
[400978444,1767877840538,-151.0,0.00011019,2]
[400978446,1767877840548,-151.0,0.00011019,2]
[400978448,1767877840557,-151.0,0.00011019,2]
[400978450,1767877840566,-151.0,0.00011019,2]
[400978452,1767877840575,-151.0,0.00011019,2]
[400978454,1767877840584,-151.0,0.00011019,2]
[400978456,1767877840594,-151.0,0.00011019,2]
[400978458,1767877840603,-151.0,0.00011019,2]
[400978460,1767877840611,-151.0,0.00011019,2]
[400978462,1767877840620,-151.0,0.00011019,2]
[400978464,1767877840628,-151.0,0.00011019,2]
[400978466,1767877840638,-151.0,0.00011019,2]
[400978468,1767877840647,-151.0,0.00011019,2]
[400978470,1767877840656,-151.0,0.00011019,2]
[400978472,1767877840666,-151.0,0.00011019,2]
[400978474,1767877840676,-151.0,0.00011019,2]
[400978476,1767877840686,-151.0,0.00011019,2]
[400978478,1767877840695,-151.0,0.00011019,2]
[400978480,1767877840705,-151.0,0.00011019,2]
[400978482,1767877840714,-500.0,0.00011019,2]
[400978484,1767877840723,-151.0,0.00011019,2]
[400978486,1767877840734,-151.0,0.00011019,2]
[400978488,1767877840743,-151.0,0.00011019,2]
[400978490,1767877840752,-151.0,0.00011019,2]
[400978492,1767877840760,-151.0,0.00011019,2]
[400978494,1767877840769,-151.0,0.00011019,2]
[400978496,1767877840778,-151.0,0.00011019,2]
[400978498,1767877840787,-151.0,0.00011019,2]
[400978500,1767877840797,-200.0,0.00011019,2]
[400978502,1767877840807,-626.22881488,0.00011019,2]
[400978504,1767877840815,-500.0,0.00011025,2]
[400978506,1767877840824,-3181.571,0.00011025,2]
[400978508,1767877840833,-167.212,0.00011025,2]
[400978510,1767877840842,-631.07745591,0.00011025,2]
[400978512,1767877840851,-235.57802038,0.00011099,2]
[400978514,1767877840860,-463.55,0.00011271,2]
[400978516,1767877840870,-463.55,0.00011545,2]
[400978518,1767877840879,-150.0,0.00011702,2]
[400978520,1767877840888,-15000.02,0.00011702,2]
[400978521,1767877840897,-195.0,0.00011793,2]
[400978523,1767877840907,-463.55,0.00011819,2]
[400978525,1767877840916,-1161.54634426,0.00011837,2]
[400978527,1767877840924,-195.0,0.00011864,2]
[400978529,1767877840933,-195.0,0.00011864,2]
[400978531,1767877840944,-300.0,0.00011864,2]
[400978533,1767877840953,-188.94617776,0.00011864,2]
[400978535,1767877840962,-195.0,0.0001188,2]
[400978537,1767877840971,-250.0,0.0001188,2]
[400978538,1767877840980,-300.0,0.00011927,2]
[400978540,1767877840989,-300.0,0.00011927,2]
[400978542,1767877840998,-300.0,0.00011927,2]
[400978544,1767877841007,-300.0,0.00011927,2]
[400978546,1767877841016,-300.0,0.00011927,2]
[400978548,1767877841026,-195.0,0.00011927,2]
[400978550,1767877841036,-250.0,0.00011927,2]
[400978552,1767877841045,-420.0,0.00011976,2]
[400978554,1767877841054,-1680.0,0.00011987,2]
[400978556,1767877841064,-255.0,0.00012038,2]
[400978558,1767877841074,-160.52,0.00012061,2]
[400978560,1767877841083,-463.58,0.00012093,2]
[400978562,1767877841094,-1000.0,0.00012246,2]
[400978564,1767877841104,-166.66,0.00012329,2]
[400978566,1767877841114,-166.66,0.00012452,2]
[400978568,1767877841123,-166.66,0.00012575,2]
[400978570,1767877841131,-166.66,0.00012699,2]
[400978572,1767877841140,-166.66,0.00012822,2]
[400978574,1767877841150,-1161.54634426,0.00012847,2]
[400978576,1767877841159,-166.66,0.00012945,2]
[400978578,1767877841168,-150.0,0.00013014,2]
[400978580,1767877841178,-234.0,0.00013162,2]
[400978582,1767877841187,-1286.08417685,0.00013168,2]
[400978584,1767877841196,-2351.0,0.00013185,2]
[400978586,1767877841205,-160.52,0.00013401,2]
[400978588,1767877841214,-1000.0,0.00013606,2]
[400978590,1767877841223,-1000.0,0.00013632,2]
[400978591,1767877841232,-151.0,0.00013809,2]
[400978593,1767877841242,-151.0,0.00013846,2]
[400978595,1767877841251,-151.0,0.00013854,2]
[400978597,1767877841261,-151.0,0.00013854,2]
[400978599,1767877841270,-151.0,0.00013855,2]
[400978601,1767877841279,-151.0,0.00013855,2]
[400978603,1767877841288,-1161.54634426,0.00013858,2]
[400978605,1767877841297,-151.0,0.00013863,2]
[400978607,1767877841307,-666.35774147,0.00014312,2]
[400978609,1767877841317,-250.0,0.00014327,2]
[400978611,1767877841325,-1000.0,0.00014477,2]
[400978613,1767877841334,-3292.0,0.00014504,2]
[400978615,1767877841347,-299.99271759,0.00014611,2]
[400978617,1767877841356,-1000.0,0.00014621,2]
[400978619,1767877841365,-160.52,0.00014741,2]
[400978621,1767877841374,-500.0,0.00014763,2]
[400978623,1767877841384,-1161.54634426,0.00014868,2]
[400978624,1767877841393,-1000.0,0.00014967,2]
[400978626,1767877841402,-1000.0,0.0001531,2]
[400978628,1767877841413,-10822.0,0.00015446,2]
[400978630,1767877841422,-322.61070001,0.0001557,2]
[400978632,1767877841432,-500.0,0.0001557,2]
[400978634,1767877841441,-1500.0,0.0001557,2]
[400978636,1767877841451,-500.0,0.0001557,2]
[400978638,1767877841460,-1500.0,0.0001557,2]
[400978640,1767877841469,-500.0,0.0001557,2]
[400978642,1767877841478,-1500.0,0.0001557,2]
[400978644,1767877841487,-500.0,0.0001557,2]
[400978646,1767877841496,-250.0,0.0001557,2]
[400978647,1767877841506,-1500.0,0.0001557,2]
[400978649,1767877841515,-250.0,0.0001557,2]
[400978651,1767877841524,-500.0,0.0001557,2]
[400978653,1767877841533,-1500.0,0.0001557,2]
[400978655,1767877841542,-500.0,0.0001557,2]
[400978657,1767877841551,-250.0,0.0001557,2]
[400978659,1767877841560,-1500.0,0.0001557,2]
[400978661,1767877841569,-500.0,0.0001557,2]
[400978663,1767877841578,-1500.0,0.0001557,2]
[400978665,1767877841587,-500.0,0.0001557,2]
[400978667,1767877841596,-1500.0,0.0001557,2]
[400978669,1767877841606,-500.0,0.0001557,2]
[400978670,1767877841616,-151.0,0.0001557,2]
[400978672,1767877841625,-1500.0,0.0001557,2]
[400978674,1767877841634,-500.0,0.0001557,2]
[400978676,1767877841647,-238.63712889,0.0001557,2]
[400978678,1767877841656,-500.0,0.0001557,2]
[400978680,1767877841668,-500.0,0.0001557,2]
[400978682,1767877841678,-250.0,0.0001557,2]
[400978684,1767877841686,-578.20924308,0.0001557,2]
[400978686,1767877841696,-166.77833559,0.0001557,2]
[400978688,1767877841705,-500.0,0.0001557,2]
[400978690,1767877841714,-500.0,0.0001557,2]
[400978692,1767877841723,-500.0,0.0001557,2]
[400978694,1767877841732,-500.0,0.0001557,2]
[400978696,1767877841741,-500.0,0.0001557,2]
[400978698,1767877841750,-500.0,0.0001557,2]
[400978700,1767877841760,-500.0,0.0001557,2]
[400978702,1767877841768,-500.0,0.0001557,2]
[400978704,1767877841778,-500.0,0.0001557,2]
[400978706,1767877841787,-500.0,0.0001557,2]
[400978707,1767877841796,-151.0,0.0001557,2]
[400978709,1767877841805,-500.0,0.0001557,2]
[400978711,1767877841815,-500.0,0.0001557,2]
[400978713,1767877841824,-500.0,0.0001557,2]
[400978715,1767877841833,-500.0,0.0001557,2]
[400978717,1767877841842,-500.0,0.0001557,2]
[400978719,1767877841852,-500.0,0.0001557,2]
[400978721,1767877841861,-620.0,0.0001557,2]
[400978723,1767877841870,-500.0,0.0001557,2]
[400978725,1767877841880,-500.0,0.0001557,2]
[400978727,1767877841889,-500.0,0.0001557,2]
[400978729,1767877841899,-500.0,0.0001557,2]
[400978731,1767877841910,-272.12855637,0.0001557,2]
[400978733,1767877841920,-6072.10307611,0.000156,2]
[400978735,1767877841929,-1330.0,0.00015616,2]
[400978737,1767877841938,-1405.0,0.00015616,2]
[400978739,1767877841948,-1266.0,0.00015616,2]
[400978741,1767877841957,-505.0,0.00015616,2]
[400978743,1767877841966,-1201.0,0.00015616,2]
[400978745,1767877841976,-914.0,0.00015616,2]
[400978747,1767877841985,-4819.0,0.00015637,2]
[400978749,1767877841995,-2436.0,0.00015637,2]
[400978751,1767877842004,-6552.0,0.00015637,2]
[400978753,1767877842013,-218.49130081,0.00015776,2]
[400978754,1767877842022,-1500.0,0.00015858,2]
[400978756,1767877842032,-1161.54634426,0.00015879,2]
[400978758,1767877842042,-4609.0,0.00015954,2]
[400978760,1767877842053,-157.72323008,0.00016045,2]
[400978762,1767877842062,-160.52,0.00016081,2]
[400978764,1767877842071,-9999.99,0.00016116,2]
[400978766,1767877842081,-9999.99,0.00016116,2]
[400978768,1767877842090,-500.0,0.00016306,2]
[400978770,1767877842099,-151.16,0.00016306,2]
[400978772,1767877842109,-1000.0,0.00016327,2]
[400978774,1767877842118,-150.0,0.00016352,2]
[400978776,1767877842127,-150.0,0.00016352,2]
[400978778,1767877842137,-150.0,0.00016352,2]
[400978780,1767877842145,-150.0,0.00016352,2]
[400978782,1767877842154,-150.0,0.00016352,2]
[400978784,1767877842164,-170.0,0.00016352,2]
[400978786,1767877842174,-150.0,0.00016352,2]
[400978788,1767877842183,-150.0,0.00016352,2]
[400978789,1767877842192,-150.0,0.00016352,2]
[400978791,1767877842201,-150.0,0.00016352,2]
[400978793,1767877842211,-151.0,0.00016352,2]
[400978795,1767877842220,-151.047,0.00016352,2]
[400978797,1767877842229,-614.0,0.00016352,2]
[400978799,1767877842238,-6072.10307611,0.00016366,2]
[400978801,1767877842248,-2000.0,0.00016406,2]
[400978803,1767877842258,-500.0,0.00016438,2]
[400978805,1767877842267,-500.0,0.00016438,2]
[400978807,1767877842277,-500.0,0.00016438,2]
[400978809,1767877842287,-500.0,0.00016438,2]
[400978811,1767877842296,-604.66157034,0.00016438,2]
[400978813,1767877842306,-978.83,0.00016533,2]
[400978815,1767877842316,-357.2,0.00016806,2]
[400978817,1767877842324,-357.2,0.00016915,2]
[400978819,1767877842335,-2500.0,0.00016954,2]
[400978821,1767877842349,-500.0,0.00017,2]
[400978823,1767877842358,-500.0,0.00017,2]
[400978825,1767877842366,-500.0,0.00017,5]
[400978827,1767877842376,-4000.0,0.00017,2]
[400978829,1767877842388,-357.2,0.00017023,2]
[400978831,1767877842398,-157.72323008,0.00017047,2]
[400978833,1767877842407,-357.2,0.00017132,2]
[400978835,1767877842420,-6072.10307611,0.00017133,2]
[400978837,1767877842429,-171.3,0.00017178,2]
[400978839,1767877842438,-357.2,0.0001724,2]
[400978841,1767877842448,-357.2,0.00017349,2]
[400978843,1767877842457,-357.2,0.00017457,2]
[400978845,1767877842467,-2000.0,0.000175,2]
[400978847,1767877842476,-1000.0,0.000175,2]
[400978849,1767877842485,-3000.0,0.00017502,2]
[400978850,1767877842495,-6453.0,0.0001755,2]
[400978852,1767877842503,-357.2,0.00017566,2]
[400978854,1767877842513,-666.35774147,0.00017624,2]
[400978856,1767877842523,-3843.2571739,0.0001764,2]
[400978858,1767877842532,-357.2,0.00017674,2]
[400978860,1767877842541,-150.0,0.00017724,2]
[400978862,1767877842553,-164.77040348,0.00017724,2]
[400978864,1767877842563,-1000.0,0.00017724,2]
[400978866,1767877842573,-500.0,0.00017724,2]
[400978868,1767877842582,-150.0,0.00017724,2]
[400978870,1767877842591,-150.0,0.00017724,2]
[400978872,1767877842600,-150.0,0.00017724,2]
[400978874,1767877842609,-150.0,0.00017724,2]
[400978876,1767877842618,-150.0,0.00017724,2]
[400978878,1767877842627,-500.0,0.00017724,2]
[400978880,1767877842638,-150.0,0.00017724,2]
[400978899,1767877842808,-150.0,0.00017724,2]
[400978904,1767877842832,-150.0,0.00017724,2]
[400978906,1767877842842,-500.0,0.00017724,2]
[400978908,1767877842851,-500.0,0.00017724,2]
[400978910,1767877842860,-500.0,0.00017724,2]
[400978911,1767877842869,-150.0,0.00017724,2]
[400978913,1767877842878,-150.0,0.00017724,2]
[400978915,1767877842888,-150.0,0.00017724,2]
[400978917,1767877842897,-300.0,0.00017725,2]
[400978919,1767877842906,-1000.0,0.00017728,2]
[400978921,1767877842916,-300.0,0.00017729,2]
[400978923,1767877842927,-300.0,0.00017731,2]
[400978925,1767877842936,-300.0,0.00017733,2]
[400978927,1767877842945,-300.0,0.00017742,2]
[400978929,1767877842954,-1000.0,0.00017743,2]
[400978931,1767877842964,-1000.0,0.00017748,2]
[400978933,1767877842973,-300.0,0.00017749,2]
[400978935,1767877842983,-1000.0,0.0001775,2]
[400978937,1767877842992,-1000.0,0.00017751,2]
[400978939,1767877843001,-1000.0,0.00017753,2]
[400978941,1767877843010,-300.0,0.00017759,2]
[400978943,1767877843019,-300.0,0.00017761,2]
[400978945,1767877843028,-300.0,0.00017762,2]
[400978947,1767877843038,-150.0,0.00017762,2]
[400978949,1767877843048,-300.0,0.00017763,2]
[400978951,1767877843057,-300.0,0.00017764,2]
[400978953,1767877843066,-300.0,0.00017765,2]
[400978955,1767877843075,-300.0,0.00017766,2]
[400978956,1767877843084,-300.0,0.00017767,2]
[400978958,1767877843093,-1000.0,0.00017771,2]
[400978960,1767877843102,-300.0,0.00017772,2]
[400978962,1767877843112,-300.0,0.00017773,2]
[400978964,1767877843122,-1045.10280699,0.00017775,2]
[400978966,1767877843132,-500.0,0.00017779,2]
[400978968,1767877843142,-150.0,0.00017779,2]
[400978970,1767877843151,-150.0,0.00017779,2]
[400978973,1767877843165,-150.0,0.00017779,2]
[400978975,1767877843174,-419.97512683,0.00017779,2]
[400978977,1767877843184,-150.0,0.00017779,2]
[400978979,1767877843193,-500.0,0.00017779,2]
[400978981,1767877843203,-500.0,0.00017779,2]
[400978983,1767877843213,-500.0,0.00017779,2]
[400978985,1767877843222,-150.0,0.00017779,2]
[400978986,1767877843232,-150.0,0.00017779,2]
[400978988,1767877843243,-300.0,0.00017779,2]
[400978990,1767877843252,-300.0,0.0001778,2]
[400978992,1767877843261,-300.0,0.00017782,2]
[400978994,1767877843271,-357.2,0.00017783,2]
[400978996,1767877843280,-223.3745729,0.00017785,2]
[400978998,1767877843292,-300.0,0.00017786,2]
[400979000,1767877843302,-1000.0,0.0001779,2]
[400979002,1767877843313,-1000.0,0.00017792,2]
[400979004,1767877843324,-150.0,0.00017796,2]
[400979006,1767877843335,-150.0,0.00017798,2]
[400979008,1767877843350,-300.0,0.00017799,2]
[400979011,1767877843365,-300.0,0.00017801,2]
[400979013,1767877843376,-300.0,0.00017801,2]
[400979015,1767877843387,-300.0,0.00017801,2]
[400979017,1767877843397,-1000.0,0.00017801,2]
[400979019,1767877843407,-300.0,0.00017806,2]
[400979021,1767877843422,-300.0,0.00017807,2]
[400979023,1767877843433,-1000.0,0.00017813,2]
[400979025,1767877843445,-300.0,0.00017814,2]
[400979027,1767877843458,-300.0,0.00017816,2]
[400979029,1767877843469,-300.0,0.00017818,2]
[400979031,1767877843479,-1000.0,0.00017819,2]
[400979033,1767877843489,-1000.0,0.0001782,2]
[400979035,1767877843499,-2010.72441,0.0001782,2]
[400979037,1767877843510,-2010.72441,0.0001782,2]
[400979040,1767877843520,-2010.72441,0.0001782,2]
[400979042,1767877843530,-2010.72441,0.0001782,2]
[400979044,1767877843542,-150.0,0.00017821,2]
[400979046,1767877843552,-1000.0,0.00017823,2]
[400979048,1767877843563,-1000.0,0.00017823,2]
[400979051,1767877843573,-300.0,0.00017824,2]
[400979054,1767877843583,-300.0,0.00017825,2]
[400979056,1767877843594,-1000.0,0.00017826,2]
[400979058,1767877843605,-1000.0,0.00017826,2]
[400979060,1767877843615,-300.0,0.00017828,2]
[400979063,1767877843625,-300.0,0.0001783,2]
[400979064,1767877843636,-300.0,0.0001783,2]
[400979067,1767877843647,-300.0,0.00017832,2]
[400979068,1767877843658,-173.0,0.00017834,2]
[400979070,1767877843668,-200.0,0.00017834,2]
[400979073,1767877843678,-200.0,0.00017834,2]
[400979074,1767877843688,-200.0,0.00017834,2]
[400979076,1767877843698,-200.0,0.00017834,2]
[400979078,1767877843708,-500.0,0.00017834,2]
[400979080,1767877843719,-182.10117033,0.00017834,2]
[400979082,1767877843729,-500.0,0.00017834,2]
[400979084,1767877843740,-200.0,0.00017834,2]
[400979087,1767877843754,-221.38436778,0.00017834,2]
[400979089,1767877843764,-300.0,0.00017834,2]
[400979091,1767877843775,-300.0,0.00017835,2]
[400979093,1767877843787,-1000.0,0.00017835,2]
[400979095,1767877843798,-227.0,0.00017844,2]
[400979097,1767877843808,-272.405,0.00017844,2]
[400979099,1767877843818,-300.0,0.00017845,2]
[400979101,1767877843828,-150.0,0.00017845,2]
[400979102,1767877843838,-300.0,0.00017849,2]
[400979103,1767877843847,-300.0,0.00017851,2]
[400979104,1767877843857,-1000.0,0.00017851,2]
[400979105,1767877843867,-300.0,0.00017853,2]
[400979106,1767877843876,-300.0,0.00017853,2]
[400979107,1767877843886,-300.0,0.00017854,2]
[400979108,1767877843896,-300.0,0.00017855,2]
[400979109,1767877843906,-200.0,0.00017856,2]
[400979110,1767877843916,-150.0,0.00017857,2]
[400979111,1767877843926,-300.0,0.00017858,2]
[400979112,1767877843935,-300.0,0.00017861,2]
[400979113,1767877843949,-300.0,0.00017863,2]
[400979114,1767877843959,-300.0,0.00017864,2]
[400979115,1767877843968,-1000.0,0.00017865,2]
[400979116,1767877843978,-300.0,0.00017869,2]
[400979117,1767877843988,-1000.0,0.00017873,2]
[400979118,1767877843997,-1000.0,0.00017874,2]
[400979119,1767877844007,-661.47,0.00017875,2]
[400979120,1767877844016,-661.47,0.00017875,2]
[400979121,1767877844026,-661.47,0.00017875,2]
[400979123,1767877844037,-661.47,0.00017875,2]
[400979124,1767877844047,-661.47,0.00017875,2]
[400979126,1767877844057,-661.47,0.00017875,2]
[400979128,1767877844067,-661.47,0.00017875,2]
[400979130,1767877844078,-661.47,0.00017875,2]
[400979133,1767877844088,-661.47,0.00017875,2]
[400979135,1767877844097,-661.47,0.00017875,2]
[400979137,1767877844107,-621.83,0.00017875,2]
[400979139,1767877844118,-1000.0,0.00017876,2]
[400979141,1767877844128,-300.0,0.00017877,2]
[400979143,1767877844142,-1000.0,0.00017878,2]
[400979145,1767877844151,-300.0,0.00017879,2]
[400979147,1767877844161,-300.0,0.00017881,2]
[400979149,1767877844171,-300.0,0.00017884,2]
[400979151,1767877844181,-300.0,0.00017886,2]
[400979153,1767877844191,-300.0,0.00017888,2]
[400979155,1767877844201,-150.0,0.00017888,2]
[400979158,1767877844211,-500.0,0.00017888,2]
[400979160,1767877844221,-300.0,0.00017891,2]
[400979162,1767877844231,-357.2,0.00017891,2]
[400979164,1767877844242,-25000.0,0.00017891,3]
[400979166,1767877844251,-300.0,0.00017893,2]
[400979168,1767877844262,-300.0,0.00017898,2]
[400979170,1767877844272,-300.0,0.00017898,2]
[400979172,1767877844282,-1000.0,0.00017898,2]
[400979174,1767877844292,-300.0,0.00017899,2]
[400979176,1767877844302,-10000.0,0.000179,2]
[400979178,1767877844311,-25000.0,0.000179,3]
[400979180,1767877844321,-6072.10307611,0.000179,2]
[400979182,1767877844334,-7198.42098085,0.000179,3]
[400979184,1767877844348,-196.86885841,0.000179,2]
[400979186,1767877844358,-1037.72021867,0.000179,2]
[400979188,1767877844368,-23965.2139512,0.000179,2]
[400979190,1767877844378,-407.36190832,0.000179,2]
[400979193,1767877844389,-1000.0,0.00017901,2]
[400979195,1767877844399,-300.0,0.00017902,2]
[400979197,1767877844409,-1000.0,0.00017903,2]
[400979199,1767877844420,-1000.0,0.00017903,2]
[400979201,1767877844430,-150.0,0.00017903,2]
[400979203,1767877844440,-300.0,0.00017908,2]
[400979205,1767877844450,-300.0,0.00017908,2]
[400979207,1767877844460,-300.0,0.00017912,2]
[400979209,1767877844470,-300.0,0.00017912,2]
[400979211,1767877844479,-300.0,0.00017913,2]
[400979213,1767877844489,-1000.0,0.00017913,2]
[400979215,1767877844498,-1000.0,0.00017915,2]
[400979217,1767877844507,-300.0,0.00017916,2]
[400979219,1767877844518,-1000.0,0.00017918,2]
[400979221,1767877844529,-300.0,0.00017919,2]
[400979223,1767877844539,-300.0,0.00017919,2]
[400979225,1767877844550,-1000.0,0.00017919,2]
[400979228,1767877844559,-1000.0,0.00017921,2]
[400979230,1767877844569,-1000.0,0.00017921,2]
[400979232,1767877844580,-300.0,0.00017922,2]